fUST/lending_fUST_20240315
["ID","MTS","AMOUNT","RATE_DAILY","PERIOD"]
[318987318,1710494461961,342.86038366,0.00012415,2]
[318987319,1710494491970,1197.2322342,0.00011881,2]
[318987320,1710494521108,155.13341474,0.00011881,2]
[318987323,1710494539094,155.13341474,0.00011881,2]
[318987324,1710494559128,155.42732432,0.00011881,2]
[318987341,1710494577168,250.0,0.00011946,2]
[318987451,1710494665948,2605.512209,0.00011625,2]
[318987552,1710494788844,155.05116689,0.00012382,2]
[318987554,1710494827345,3077.20137663,0.00011908,2]
[318987555,1710494827377,9000.0,0.00011908,2]
[318987556,1710494827408,9000.0,0.00011908,2]
[318987557,1710494835279,-3791.0,0.00011908,2]
[318987558,1710494904159,-280.75210608,0.00011901,2]
[318987559,1710494904181,-191.689329,0.00011901,2]
[318987560,1710494904203,-155.04651395,0.00011902,2]
[318987561,1710494904225,-404.82872005,0.00011903,2]
[318987562,1710494904251,-1953.00677637,0.00011904,2]
[318987563,1710494904273,-155.05116689,0.00011905,2]
[318987564,1710494904297,-1882.98558379,0.00011905,2]
[318987565,1710494904318,-381.81591752,0.00011905,2]
[318987566,1710494904340,-609.97756049,0.00011905,2]
[318987567,1710494904362,-184.73640903,0.00011905,2]
[318987568,1710494904384,-311.10991683,0.00011906,2]
[318987569,1710494930219,308.80436113,0.00011671,2]
[318987573,1710494993466,-5000000.0,0.0002201,60]
[318987664,1710495036104,-212.20893555,0.00011781,2]
[318987666,1710495036114,-204.85816159,0.00011782,2]
[318987668,1710495036125,-524.89134722,0.00011783,2]
[318987670,1710495036135,-155.04496304,0.00011784,2]
[318987672,1710495036145,-616.4741109,0.00011785,2]
[318987674,1710495036156,-1141.0,0.00011789,2]
[318987676,1710495036166,-31.79862337,0.00011908,2]
[318987679,1710495036178,-338.75001702,0.00012501,2]
[318987682,1710495036187,-220.86764969,0.00012502,2]
[318987685,1710495036197,-207.49370121,0.00013599,2]
[318987686,1710495036207,-1331.228147,0.00013699,2]
[318987689,1710495036218,-3000.0,0.00013699,2]
[318987690,1710495036228,-9141.95478077,0.00014517,2]
[318987692,1710495036238,-153.0,0.000146,2]
[318987694,1710495036248,-153.0,0.000146,2]
[318987696,1710495036259,-1882.98558379,0.00014664,2]
[318987698,1710495036271,-609.97756049,0.00014664,2]
[318987700,1710495036282,-2000.0,0.00014665,2]
[318987702,1710495036292,-201.1290711,0.00014756,2]
[318987704,1710495036303,-306.9615974,0.00014756,2]
[318987706,1710495036313,-257.8792595,0.00014756,2]
[318987709,1710495036325,-201.1290711,0.00014756,2]
[318987711,1710495036335,-153.0,0.00014756,2]
[318987713,1710495036347,-153.0,0.00014756,2]
[318987715,1710495036356,-153.0,0.00014756,2]
[318987717,1710495036366,-306.0,0.00014756,2]
[318987719,1710495036376,-201.1290711,0.00014756,2]
[318987721,1710495036386,-153.0,0.00014756,2]
[318987723,1710495036397,-153.0,0.00014756,2]
[318987725,1710495036406,-153.0,0.00014756,2]
[318987727,1710495036416,-153.0,0.00014756,2]
[318987729,1710495036425,-201.1290711,0.00014756,2]
[318987731,1710495036436,-153.0,0.00014756,2]
[318987733,1710495036446,-201.1290711,0.00014756,2]
[318987734,1710495036455,-153.285354,0.00014756,2]
[318987736,1710495036466,-201.1290711,0.00014756,2]
[318987738,1710495036476,-201.1290711,0.00014756,2]
[318987739,1710495036485,-153.9943559,0.00014756,2]
[318987741,1710495036495,-154.206267,0.00014756,2]
[318987742,1710495036505,-201.1290711,0.00014756,2]
[318987743,1710495036514,-306.0,0.00014756,2]
[318987745,1710495036523,-201.1290711,0.00014756,2]
[318987746,1710495036532,-200.8354339,0.00014756,2]
[318987748,1710495036541,-201.085777,0.00014778,2]
[318987750,1710495036551,-402.171554,0.00014978,2]
[318987751,1710495036560,-306.0,0.00014978,2]
[318987752,1710495036570,-423.6873888,0.00015,2]
[318987753,1710495036580,-155.07909034,0.00015,2]
[318987754,1710495036589,-153.0,0.00015041,2]
[318987755,1710495036601,-153.0,0.00015178,2]
[318987756,1710495036611,-1366.92693372,0.000153,2]
[318987757,1710495036620,-326.5801553,0.00015304,2]
[318987758,1710495036630,-153.0,0.00015304,2]
[318987759,1710495036639,-153.0,0.00015304,2]
[318987760,1710495036649,-1366.92693369,0.00015325,2]
[318987762,1710495036658,-1366.92693369,0.0001535,2]
[318987764,1710495036669,-1366.92693369,0.00015375,2]
[318987766,1710495036679,-3093.09911713,0.0001538,2]
[318987768,1710495036688,-2000.0,0.00015381,2]
[318987770,1710495036697,-69103.78802837,0.000154,2]
[318987772,1710495036706,-207.49370121,0.000154,2]
[318987774,1710495036716,-1366.92693369,0.000154,2]
[318987776,1710495036725,-20536.0176073,0.00015497,2]
[318987779,1710495036740,-664.92766517,0.00015497,2]
[318987781,1710495036755,-11712.92164581,0.00015497,2]
[318987783,1710495036765,-353.21483295,0.00015498,2]
[318987785,1710495036774,-331.37448475,0.00015498,2]
[318987787,1710495036785,-183.10678877,0.00015498,2]
[318987789,1710495036795,-217.11362545,0.00015498,2]
[318987791,1710495036804,-325.84919186,0.00015498,2]
[318987793,1710495036813,-429.45007321,0.00015498,2]
[318987795,1710495036822,-532.5672985,0.00015498,2]
[318987797,1710495036832,-3223.52670201,0.00015498,2]
[318987800,1710495036841,-1218.67512428,0.00015498,2]
[318987801,1710495036852,-208.46014037,0.00015498,2]
[318987804,1710495036861,-1722.66681867,0.00015498,2]
[318987806,1710495036871,-879.40489072,0.00015498,2]
[318987808,1710495036880,-3430.7329,0.00015498,2]
[318987809,1710495036889,-155.34178386,0.00015498,2]
[318987811,1710495036898,-155.57810821,0.00015498,2]
[318987813,1710495036907,-612.01725545,0.00015498,2]
[318987815,1710495036917,-156.95174119,0.00015498,2]
[318987817,1710495036929,-273.22812433,0.00015498,2]
[318987819,1710495036939,-155.13652014,0.00015498,2]
[318987822,1710495036949,-155.43491254,0.00015498,2]
[318987824,1710495036959,-191.86828042,0.00015498,2]
[318987826,1710495036969,-334.73129055,0.00015498,2]
[318987828,1710495036979,-199.91154882,0.00015498,2]
[318987830,1710495036988,-155.28084809,0.00015498,2]
[318987831,1710495036998,-444.85363924,0.00015498,2]
[318987833,1710495037009,-405.47318284,0.00015498,2]
[318987836,1710495037019,-279.99576664,0.00015498,2]
[318987837,1710495037031,-259.84900373,0.00015498,2]
[318987839,1710495037040,-205.53548499,0.00015499,2]
[318987841,1710495037049,-418.41244982,0.00015499,2]
[318987843,1710495037058,-164.84646647,0.00015499,2]
[318987845,1710495037068,-254.9147828,0.00015499,2]
[318987848,1710495037077,-2762.95044002,0.00015499,2]
[318987849,1710495037086,-1736.42124834,0.00015499,2]
[318987860,1710495037159,-310.02015132,0.00015499,2]
[318987862,1710495037184,-155.99696445,0.00015499,2]
[318987864,1710495037195,-273.58801199,0.00015499,2]
[318987866,1710495037203,-5352.7063833,0.000155,2]
[318987868,1710495037215,-1265.26291574,0.000155,2]
[318987952,1710495037921,-159348.44094571,0.000155,2]
[318987954,1710495037933,-117707.57307987,0.000155,2]
[318988165,1710495041451,-2191.6664475,0.000155,2]
[318988166,1710495041467,-591.867,0.000155,2]
[318988167,1710495041511,-1274790.8731712,0.000155,2]
[318988168,1710495041523,-197809.84002385,0.000155,2]
[318988240,1710495042914,-4142.99498438,0.000155,2]
[318988242,1710495042928,-10167.49929577,0.000155,2]
[318988244,1710495042941,-84245.86707158,0.000155,2]
[318988245,1710495042955,-148348.32805809,0.000155,2]
[318988246,1710495042966,-1487.13751384,0.000155,2]
[318988248,1710495042977,-36072.34429408,0.000155,2]
[318988251,1710495042988,-1785.00000001,0.000155,2]
[318988252,1710495043000,-7773.5658587,0.000155,2]
[318988363,1710495046251,-6457.74876799,0.000155,2]
[318988469,1710495258741,-212.20893555,0.00013697,2]
[318988490,1710495706078,-212.20893555,0.00012454,2]
[318988491,1710495706100,-589.79106445,0.00012455,2]
[318988492,1710495774237,-1293.19451934,0.00012455,2]
[318988493,1710495774261,-250.0,0.00012456,2]
[318988494,1710495774284,-5499.80548066,0.00012456,2]
[318988495,1710495900970,-21585.0,0.00012429,2]
[318988496,1710495969239,-3315.0,0.00012429,2]
[318988497,1710495969260,-7034.66054144,0.00012456,2]
[318988498,1710495969283,-595.6652138,0.00012456,2]
[318988499,1710495983298,748.67424476,0.00012429,2]
[318988501,1710496025159,5356.43,0.000209,30]
[318988502,1710496036194,-1409.97181396,0.00012428,2]
[318988503,1710496036215,-10945.32575524,0.00012429,2]
[318988504,1710496036238,-2214.2924563,0.00012556,2]
[318988505,1710496036258,-696.4099745,0.00012585,2]
[318988506,1710496051843,1544.19,0.0002,30]
[318988598,1710496235469,-158.258108,0.00012585,2]
[318988600,1710496235485,-1303.7493865,0.00012755,2]
[318988602,1710496235495,-170.44986526,0.00013599,2]
[318988604,1710496235505,-2410.04264024,0.00013699,2]
[318988607,1710496235518,-589.95735976,0.00013699,2]
[318988609,1710496235527,-2048.090801,0.00013699,2]
[318988611,1710496235538,-17030.5073533,0.00013722,2]
[318988613,1710496235547,-250.0,0.00014161,2]
[318988615,1710496235557,-336.85111185,0.00014723,2]
[318988617,1710496235567,-2000.0,0.00014824,2]
[318988619,1710496235576,-625.42796573,0.00014845,2]
[318988621,1710496235586,-1512.65833217,0.00015399,2]
[318988623,1710496235596,-636.0913726,0.000154,2]
[318988625,1710496235605,-12511.88976742,0.000154,2]
[318988627,1710496235615,-478.37548004,0.000154,2]
[318988629,1710496235625,-798.41285723,0.000154,2]
[318988631,1710496235634,-616.09927238,0.00015498,2]
[318988633,1710496235644,-208.43582616,0.00015498,2]
[318988635,1710496235653,-366.20838835,0.00015498,2]
[318988637,1710496235663,-1081.4087181,0.00015498,2]
[318988639,1710496235674,-155.25318276,0.00015498,2]
[318988641,1710496235683,-263.34560806,0.00015498,2]
[318988643,1710496235693,-280.29347864,0.00015498,2]
[318988645,1710496235703,-15265.62274168,0.00015498,2]
[318988647,1710496235712,-604.7134091,0.00015499,2]
[318988649,1710496235722,-294.77831715,0.00015499,2]
[318988651,1710496235733,-524.60379782,0.00015499,2]
[318988653,1710496235743,-806.41845803,0.00015499,2]
[318988655,1710496235753,-204.85816159,0.00015499,2]
[318988657,1710496235763,-3962.38986555,0.000155,2]
[318988659,1710496235775,-10680.24946018,0.000155,2]
[318988738,1710496237978,-3365.38244192,0.000155,2]
[318989074,1710496243180,-135564.22747056,0.000155,2]
[318989137,1710496247564,-865297.45945106,0.000155,2]
[318989151,1710496247826,-1346.75,0.000155,2]
[318989395,1710497433717,-250.0,0.00014271,2]
[318989397,1710497433727,-175.187346,0.00014292,2]
[318989398,1710497433737,-1024.0454,0.00014387,2]
[318989399,1710497433746,-2589.82031026,0.00014399,2]
[318989414,1710497438169,-3688.14122699,0.00014399,2]
[318989608,1710497440249,-18622.03846275,0.00014399,2]
[318989610,1710497440259,-2000.0,0.00014844,2]
[318989612,1710497440269,-1100.28562974,0.000154,2]
[318989614,1710497440280,-806.41845803,0.00015482,2]
[318989616,1710497440291,-260.09315931,0.00015483,2]
[318989618,1710497440303,-11301.98450732,0.00015497,2]
[318989620,1710497440313,-151.0,0.00015499,2]
[318989622,1710497440323,-33709.75684803,0.000155,2]
[318989624,1710497440336,-102756.52248662,0.000155,2]
[318989777,1710497443198,-541.95805976,0.000155,2]
[318989779,1710497443267,-441.6672,0.000155,2]
[318989781,1710497443291,-5479.0999902,0.000155,2]
[318989782,1710497443306,-24650.7818452,0.000155,2]
[318989783,1710497443392,-6691.83687659,0.000155,2]
[318989784,1710497443405,-1217.34642403,0.000155,2]
[318989814,1710497446497,-484.246288,0.000155,2]
[318989945,1710498632291,-155.04651395,0.00014582,2]
[318989947,1710498632300,-432.48357243,0.00014583,2]
[318989968,1710498632498,-79.53912757,0.00014583,2]
[318989970,1710498632508,-635.74087243,0.00014611,2]
[318990073,1710498638291,-260.373,0.00014611,2]
[318990298,1710498643353,-6114.9084586,0.00014611,2]
[318990299,1710498643415,-1000.0,0.00014611,2]
[318990359,1710499363966,-175.187346,0.00014214,2]
[318990360,1710499363994,-24900.0,0.00014345,2]
[318990361,1710499364025,-768.034051,0.00014392,2]
[318990362,1710499364053,-620.27139829,0.00014808,2]
[318990363,1710499364082,-2000.0,0.00014972,2]
[318990364,1710499364111,-45213.08343421,0.00015,2]
[318990365,1710499384172,-250.0,0.00014635,2]
[318990366,1710499384200,-13960.25248439,0.000154,2]
[318990367,1710499384228,-155.15515516,0.00015483,2]
[318990368,1710499384254,-1481.26950952,0.00015483,2]
[318990369,1710499384282,-524.66132119,0.00015498,2]
[318990370,1710499384309,-331.46232898,0.00015498,2]
[318990371,1710499384337,-2222.67511108,0.00015498,2]
[318990372,1710499384364,-212.12126449,0.00015498,2]
[318990373,1710499384391,-558.58973234,0.00015498,2]
[318990375,1710499384419,-4608.43936204,0.00015498,2]
[318990376,1710499384447,-318.05314626,0.00015498,2]
[318990377,1710499384478,-499.9995,0.00015499,2]
[318990378,1710499384504,-156.85523784,0.00015499,2]
[318990379,1710499384531,-596.40893399,0.00015499,2]
[318990380,1710499384558,-155.16602765,0.00015499,2]
[318990381,1710499384585,-1474.94168341,0.00015499,2]
[318990382,1710499384612,-191.61181795,0.00015499,2]
[318990383,1710499384645,-117515.42081792,0.000155,2]
[318990384,1710499391391,-145213.08343421,0.000155,2]
[318990385,1710499399327,-145213.08343421,0.000155,2]
[318990386,1710499405584,-145213.08343421,0.000155,2]
[318990387,1710499409304,-145213.08343421,0.000155,2]
[318990388,1710499412379,-145213.08343421,0.000155,2]
[318990406,1710499601423,-322.18623575,0.00014997,2]
[318990407,1710499601450,-155.06357607,0.00014998,2]
[318990408,1710499601478,-156.08972204,0.00014998,2]
[318990409,1710499601505,-212.20893555,0.00014998,2]
[318990410,1710499601532,-639.33425979,0.00014999,2]
[318990411,1710499601559,-184.73640903,0.00014999,2]
[318990412,1710499601585,-19255.0,0.00015,2]
[318990413,1710499601612,-673.23095546,0.00015033,2]
[318990414,1710499601642,-309.8295945,0.00015483,2]
[318990415,1710499601670,-1005.91875864,0.00015483,2]
[318990416,1710499601697,-884.38898759,0.00015498,2]
[318990417,1710499601725,-191.57920346,0.00015498,2]
[318990418,1710499601751,-202.25832938,0.00015498,2]
[318990419,1710499601777,-303.24150218,0.00015498,2]
[318990420,1710499601803,-429.31792098,0.00015498,2]
[318990421,1710499601830,-286.36998653,0.00015498,2]
[318990422,1710499601857,-404.53047881,0.00015498,2]
[318990423,1710499601886,-188.41177765,0.00015498,2]
[318990424,1710499601913,-181.58112489,0.00015498,2]
[318990425,1710499601941,-277.65565165,0.00015498,2]
[318990426,1710499602069,-155.39390741,0.00015498,2]
[318990427,1710499602097,-1430.85054392,0.00015498,2]
[318990428,1710499602124,-3163.00519819,0.00015498,2]
[318990429,1710499602159,-155.49763071,0.00015498,2]
[318990430,1710499602187,-164.4431623,0.00015498,2]
[318990431,1710499602215,-1882.98558379,0.00015498,2]
[318990432,1710499602244,-1966.87565012,0.00015498,2]
[318990433,1710499602273,-596.65223752,0.00015498,2]
[318990434,1710499602305,-303.62692092,0.00015498,2]
[318990435,1710499602333,-3223.90400517,0.00015498,2]
[318990436,1710499602362,-241.48433561,0.00015498,2]
[318990437,1710499602393,-301.71255932,0.00015498,2]
[318990438,1710499602422,-325.87612203,0.00015498,2]
[318990439,1710499602451,-2647.32551417,0.00015498,2]
[318990440,1710499602481,-180.59567431,0.00015498,2]
[318990441,1710499602510,-529.12647447,0.00015498,2]
[318990442,1710499602539,-929.3282691,0.00015498,2]
[318990443,1710499602566,-3500.01988252,0.00015498,2]
[318990444,1710499602595,-289.89414089,0.00015498,2]
[318990445,1710499602624,-1518.38058099,0.00015498,2]
[318990446,1710499602658,-16724.7429235,0.00015498,2]
[318990447,1710499602684,-929.64961834,0.00015499,2]
[318990448,1710499602715,-77788.77908896,0.000155,2]
[318990449,1710499608562,-155.06512735,0.00014996,2]
[318990450,1710499608591,-203.8321541,0.00015498,2]
[318990451,1710499608622,-144854.18615276,0.000155,2]
[318990452,1710499613771,-155.16136782,0.00015499,2]
[318990453,1710499613799,-329.24454337,0.00015499,2]
[318990454,1710499613825,-199.35087167,0.00015499,2]
[318990455,1710499613852,-597.15388098,0.00015499,2]
[318990456,1710499613880,-325.15898283,0.00015499,2]
[318990457,1710499613914,-143607.01378754,0.000155,2]
[318990458,1710499618774,-429.57182691,0.00015499,2]
[318990459,1710499618803,-213.75613037,0.00015499,2]
[318990460,1710499618834,-326.60712541,0.00015499,2]
[318990461,1710499618862,-157.16179813,0.00015499,2]
[318990462,1710499618891,-929.3282691,0.00015499,2]
[318990463,1710499618922,-143156.65828429,0.000155,2]
[318990465,1710499623425,-1882.87079249,0.00015498,2]
[318990466,1710499623455,-3430.93079802,0.00015499,2]
[318990467,1710499623487,-139899.2818437,0.000155,2]
[318990468,1710499629481,-155.20636188,0.00015499,2]
[318990469,1710499629509,-155.07598723,0.00015499,2]
[318990470,1710499629542,-144902.8010851,0.000155,2]
[318990471,1710499635128,-145213.08343421,0.000155,2]
[318990472,1710499698934,-3430.93079802,0.00014722,2]
[318990473,1710499698962,-336.88608686,0.00014723,2]
[318990474,1710499698989,-1588.49408202,0.00015033,2]
[318990475,1710499699016,-5162.74519974,0.00015345,2]
[318990476,1710499699044,-1775.7096874,0.00015399,2]
[318990477,1710499699071,-164.82585493,0.000154,2]
[318990478,1710499699113,-2655.99957221,0.000154,2]
[318990479,1710499699144,-300.0,0.00015497,2]
[318990480,1710499699174,-211.93787119,0.00015498,2]
[318990481,1710499699204,-155.16447434,0.00015498,2]
[318990482,1710499699235,-322.18623575,0.00015498,2]
[318990483,1710499699264,-1475.54009242,0.00015498,2]
[318990484,1710499699293,-155.07288426,0.00015498,2]
[318990485,1710499699322,-155.44833689,0.00015498,2]
[318990486,1710499699351,-192.02408373,0.00015498,2]
[318990487,1710499699380,-1952.75166099,0.00015498,2]
[318990488,1710499699407,-225.90113262,0.00015498,2]
[318990489,1710499699435,-381.81591752,0.00015498,2]
[318990490,1710499699463,-210.75824561,0.00015498,2]
[318990491,1710499699490,-300.85563343,0.00015498,2]
[318990492,1710499699517,-155.48464561,0.00015498,2]
[318990493,1710499699543,-199.49739831,0.00015498,2]
[318990494,1710499699570,-616.25212117,0.00015498,2]
[318990495,1710499699597,-155.08684864,0.00015498,2]
[318990496,1710499699623,-245.85336353,0.00015498,2]
[318990497,1710499699650,-198.81979973,0.00015498,2]
[318990498,1710499699677,-155.24967747,0.00015498,2]
[318990499,1710499699706,-280.56418145,0.00015498,2]
[318990500,1710499699745,-179.81023046,0.00015498,2]
[318990501,1710499699788,-248.47262839,0.00015498,2]
[318990502,1710499699826,-155.16447434,0.00015498,2]
[318990503,1710499699863,-4541.50174316,0.00015498,2]
[318990504,1710499699897,-155.16447434,0.00015498,2]
[318990505,1710499699932,-596.65223752,0.00015498,2]
[318990506,1710499699969,-2020.56022276,0.00015498,2]
[318990507,1710499700003,-155.45440484,0.00015498,2]
[318990508,1710499700041,-190.36384949,0.00015498,2]
[318990509,1710499700081,-1607.71755541,0.00015498,2]
[318990510,1710499700122,-241.19596426,0.00015498,2]
[318990511,1710499700159,-300.29423639,0.00015498,2]
[318990512,1710499700190,-554.30467457,0.00015498,2]
[318990513,1710499700225,-1081.67586538,0.00015498,2]
[318990514,1710499700259,-455.21619354,0.00015498,2]
[318990515,1710499700295,-294.83074187,0.00015498,2]
[318990516,1710499700329,-326.64058595,0.00015498,2]
[318990517,1710499700365,-160.81082363,0.00015498,2]
[318990518,1710499700405,-201.02920798,0.00015498,2]
[318990519,1710499700438,-155.54684149,0.00015498,2]
[318990520,1710499700473,-155.16447434,0.00015498,2]
[318990521,1710499700506,-1569.68954403,0.00015498,2]
[318990522,1710499700539,-609.97756049,0.00015498,2]
[318990523,1710499700573,-171.04775531,0.00015498,2]
[318990524,1710499700607,-204.85816159,0.00015498,2]
[318990525,1710499700640,-401.74198991,0.00015498,2]
[318990526,1710499700673,-155.21730423,0.00015498,2]
[318990527,1710499700708,-155.42208487,0.00015498,2]
[318990528,1710499700866,-2116.47193396,0.00015498,2]
[318990529,1710499700896,-155.55648964,0.00015498,2]
[318990530,1710499700925,-3501.36328965,0.00015498,2]
[318990531,1710499700952,-155.48800519,0.00015498,2]
[318990532,1710499700983,-338.7091611,0.00015498,2]
[318990533,1710499701010,-184.71260849,0.00015498,2]
[318990534,1710499701037,-559.44428594,0.00015498,2]
[318990535,1710499701064,-15269.62310312,0.00015498,2]
[318990536,1710499701093,-170.96253168,0.00015498,2]
[318990537,1710499701121,-3223.52670201,0.00015498,2]
[318990538,1710499701148,-155.07598723,0.00015499,2]
[318990539,1710499701179,-79174.76761982,0.000155,2]
[318990570,1710499835105,-7456.14559446,0.00013906,2]
[318990571,1710499835248,-3142.6313139,0.00013906,2]
[318990996,1710499843607,-4249.06689308,0.00013906,2]
[318991028,1710500565987,-381.81591752,0.00011858,2]
[318991029,1710500566091,-15269.62310312,0.00011859,2]
[318991030,1710500566113,-170.96253168,0.00011859,2]
[318991031,1710500566134,-3513.59844768,0.0001186,2]
[318991033,1710500625289,1069.72,0.00029,120]
[318991034,1710500635921,-455.21619354,0.00011756,2]
[318991035,1710500635947,-14557.78380646,0.00011757,2]
[318991037,1710500698721,6911.98,0.000117,2]
[318991038,1710500705579,-656.50215122,0.00011757,2]
[318991039,1710500705601,-17904.80158941,0.00011757,2]
[318991040,1710500705625,-687.27626545,0.00011757,2]
[318991041,1710500705647,-28.25769672,0.0001186,2]
[318991042,1710500705670,-1784.1622972,0.00011996,2]
[318991045,1710500840909,-391.16707196,0.00011757,2]
[318991046,1710500840931,-21261.83292804,0.00011956,2]
[318991061,1710500910033,-29015.11292677,0.00011955,2]
[318991062,1710500910054,-3514.88707323,0.00011956,2]
[318991107,1710501032715,-455.21619354,0.00011955,2]
[318991108,1710501032729,-706.66661449,0.00011956,2]
[318991109,1710501032740,-520.76015373,0.00011956,2]
[318991110,1710501032751,-351.52518247,0.00011956,2]
[318991111,1710501032763,-521.57034808,0.00011956,2]
[318991161,1710501038610,-3369.4,0.00011956,2]
[318991163,1710501038622,-5475.40345647,0.00011956,2]
[318991165,1710501038632,-123.27999873,0.00011956,2]
[318991167,1710501038641,-250.0,0.00011956,2]
[318991169,1710501038650,-430.1301591,0.00011996,2]
[318991171,1710501038659,-696.4099745,0.000121,2]
[318991173,1710501038668,-6580.2485988,0.00012817,2]
[318991177,1710501038701,-1989.22542,0.00012817,2]
[318991179,1710501038713,-346.14799998,0.00012817,2]
[318991267,1710501041736,-2244.19977558,0.00012817,2]
[318991268,1710501041747,-1374.64422774,0.00012817,2]
[318991269,1710501041757,-194.10012939,0.000129,2]
[318991270,1710501041766,-1771.2217488,0.00012976,2]
[318991271,1710501041776,-595.6652138,0.00013019,2]
[318991272,1710501041786,-796.2827724,0.00013699,2]
[318991273,1710501041795,-1072.276893,0.00013699,2]
[318991274,1710501041804,-2752.2050856,0.00013699,2]
[318991276,1710501041813,-6874.80182746,0.00013906,2]
[318991278,1710501041822,-2000.0,0.00014745,2]
[318991280,1710501041831,-635.80582468,0.00014771,2]
[318991281,1710501041840,-6494.86772829,0.00015397,2]
[318991282,1710501041850,-18363.97786359,0.000154,2]
[318991287,1710501043739,-1100.2228046,0.000154,2]
[318991288,1710501043749,-2369.6085426,0.000154,2]
[318991557,1710502231878,-1569.68954403,0.00014062,2]
[318991558,1710502231888,-455.21619354,0.00014062,2]
[318991559,1710502231897,-24900.0,0.00014063,2]
[318991560,1710502231906,-630.076353,0.00014188,2]
[318991561,1710502231917,-2000.0,0.000146,2]
[318991562,1710502231928,-1512.65833217,0.00015,2]
[318991563,1710502231939,-2000.0,0.00015251,2]
[318991564,1710502231949,-187.08775268,0.00015293,2]
[318991565,1710502231959,-197.04010283,0.00015398,2]
[318991566,1710502231970,-155.06202481,0.000154,2]
[318991567,1710502231980,-13045.62117151,0.000154,2]
[318991568,1710502231993,-509.71,0.000154,2]
[318991680,1710502237929,-301.63340325,0.000154,2]
[318991683,1710502237940,-344.28600002,0.000154,2]
[318991686,1710502237952,-1995.11846,0.000154,2]
[318992029,1710502242971,-6571.41784231,0.000154,2]
[318992030,1710502242983,-12639.15098052,0.000154,2]
[318992032,1710502242994,-7595.89350592,0.000154,2]
[318992033,1710502243004,-210.69662867,0.00015498,2]
[318992035,1710502243013,-1607.10940545,0.00015498,2]
[318992037,1710502243022,-155.07753877,0.00015498,2]
[318992039,1710502243031,-179.81023046,0.00015498,2]
[318992042,1710502243042,-7000.02048167,0.00015498,2]
[318992045,1710502243052,-18.05546706,0.00015498,2]
[318992152,1710503432059,-1569.68954403,0.00012797,2]
[318992154,1710503432070,-5111.44851144,0.00012798,2]
[318992156,1710503432082,-404.18246612,0.00012798,2]
[318992164,1710503432150,-843.62917887,0.00012798,2]
[318992469,1710503446193,-1346.75,0.00012798,2]
[318992473,1710503446270,-1471.27836882,0.00012798,2]
[318992586,1710504632256,-639.33425979,0.00012757,2]
[318992588,1710504632267,-1882.98558379,0.00012758,2]
[318992589,1710504632278,-844.18428848,0.00014048,2]
[318992590,1710504632289,-888.23740997,0.00014048,2]
[318993088,1710505832753,-639.33425979,0.00012253,2]
[318993090,1710505832762,-322.18623575,0.00012254,2]
[318993092,1710505832771,-155.01085076,0.00012255,2]
[318993094,1710505832781,-155.01085076,0.00012258,2]
[318993096,1710505832790,-155.43298369,0.00012798,2]
[318993098,1710505832799,-1192.45171976,0.00013693,2]
[318993282,1710505838476,-2120.88608694,0.00013556,2]
[318993284,1710505838488,-3861.12633333,0.00013556,2]
[318993322,1710505840705,-2453.19932533,0.00013556,2]
[318993323,1710505840714,-4943.10026909,0.00013693,2]
[318993335,1710505843613,-767.14563246,0.00013693,2]
[318993349,1710506028922,159.18,0.000145,7]
[318993358,1710506165092,1779.21563887,0.0001175,2]
[318993359,1710506171981,9000.0,0.000115,2]
[318993360,1710506183027,9000.0,0.0001125,2]
[318993361,1710506202637,5231.68,0.00011,2]
[318993362,1710506212072,-596.65223752,0.00011247,2]
[318993363,1710506212094,-1081.67586538,0.00011248,2]
[318993364,1710506212116,-155.01085076,0.00011248,2]
[318993365,1710506212137,-212.20893555,0.00011249,2]
[318993366,1710506212159,-455.21619354,0.00011249,2]
[318993367,1710506212182,-1000.0,0.0001125,2]
[318993368,1710506212205,-10000.0,0.0001125,2]
[318993369,1710506212225,-155.01085076,0.00011499,2]
[318993370,1710506212247,-1000.0,0.000115,2]
[318993371,1710506212268,-9876.22506649,0.000115,2]
[318993372,1710506221729,2072.73717696,0.00011,2]
[318993373,1710506230206,1695.58282304,0.00011,2]
[318993374,1710506281986,-381.81591752,0.00010996,2]
[318993375,1710506282009,-639.33425979,0.00010997,2]
[318993376,1710506282030,-1475.54009242,0.00010998,2]